Department Family,Entity,Date,Expenses Type,Expense Area,Supplier,Transaction Number, Total 
Department oh Health,The Christie NHS Foundation Trust,07/02/2019,Drugs,Drugs,ALCURA UK LIMITED,0000605891,"100,806.48"
Department oh Health,The Christie NHS Foundation Trust,28/02/2019,Drugs,Drugs,ALCURA UK LIMITED,0000608047,"79,402.58"
Department oh Health,The Christie NHS Foundation Trust,14/02/2019,Adhoc Charges- Dec 18,Christie Medical Physics,ALLIANCE MEDICAL LTD,0000605421,"72,190.00"
Department oh Health,The Christie NHS Foundation Trust,28/02/2019,PET Scans- Jan 19,Christie Medical Physics,ALLIANCE MEDICAL LTD,0000606550,"132,435.00"
Department oh Health,The Christie NHS Foundation Trust,14/02/2019,Printing Jan 19-Mar 19,Corporate,APOGEE CORPORATION LTD,0000606525,"32,128.20"
Department oh Health,The Christie NHS Foundation Trust,01/02/2019,Drugs,Drugs,BAXTER HEALTHCARE LTD,0000606702,"336,207.60"
Department oh Health,The Christie NHS Foundation Trust,07/02/2019,Drugs,Drugs,BAXTER HEALTHCARE LTD,0000604851,"1,260,783.95"
Department oh Health,The Christie NHS Foundation Trust,07/02/2019,Drugs,Drugs,BAXTER HEALTHCARE LTD,0000605869,"-44,904.00"
Department oh Health,The Christie NHS Foundation Trust,14/02/2019,Drugs,Drugs,BAXTER HEALTHCARE LTD,0000606620,"556,040.00"
Department oh Health,The Christie NHS Foundation Trust,14/02/2019,Drugs,Drugs,BAXTER HEALTHCARE LTD,0000605521,"514,357.73"
Department oh Health,The Christie NHS Foundation Trust,21/02/2019,Drugs,Drugs,BAXTER HEALTHCARE LTD,0000605821,"478,668.92"
Department oh Health,The Christie NHS Foundation Trust,21/02/2019,Drugs,Drugs,BAXTER HEALTHCARE LTD,0000605868,"327,678.65"
Department oh Health,The Christie NHS Foundation Trust,07/02/2019,Medical Equipment Maintenance Contract,Clinical Support & Specialist Surgery,CPP FACILITIES LLP,0000605590,"213,550.77"
Department oh Health,The Christie NHS Foundation Trust,14/02/2019,Medical Equipment Maintenance Contract,Clinical Support & Specialist Surgery,CPP FACILITIES LLP,0000605683,"198,260.76"
Department oh Health,The Christie NHS Foundation Trust,07/02/2019,Software Licences,Research & Development,DATATRIAL LIMITED,0000602348,"32,258.40"
Department oh Health,The Christie NHS Foundation Trust,14/02/2019,Energy Contract Jan 18,Network Services,EDF ENERGY,0000606785,"45,496.29"
Department oh Health,The Christie NHS Foundation Trust,21/02/2019,IT Equipment,Capital,EUROPEAN ELECTRONIQUE LTD,0000606281,"412,543.72"
Department oh Health,The Christie NHS Foundation Trust,14/02/2019,Computer Equipment,FInance & Business Development,HP INC.UK LIMITED,0000605515,"45,965.76"
Department oh Health,The Christie NHS Foundation Trust,28/02/2019,Computer Equipment,Capital,HP INC.UK LIMITED,0000606988,"115,996.38"
Department oh Health,The Christie NHS Foundation Trust,06/02/2019,Paterson Development,Capital,INTERSERVE CONSTRUCTION LTD,0000605432,"672,400.42"
Department oh Health,The Christie NHS Foundation Trust,28/02/2019,Paterson Development,Capital,INTERSERVE CONSTRUCTION LTD,0000608397,"1,056,597.49"
Department oh Health,The Christie NHS Foundation Trust,28/02/2019,Paterson Development,Capital,INTERSERVE CONSTRUCTION LTD,0000608454,"175,072.43"
Department oh Health,The Christie NHS Foundation Trust,21/02/2019,Patient Flow Second Payment,Capital,INTOUCH WITH HEALTH LIMITED,0000603334,"110,729.22"
Department oh Health,The Christie NHS Foundation Trust,07/02/2019,Chemotherapy Prescribing System Jan- Mar 19,FInance & Business Development,IQ HEALTH TECH LTD,0000603357,"32,500.00"
Department oh Health,The Christie NHS Foundation Trust,21/02/2019,Drugs,Drugs,LLOYDSPHARMACY CLINICAL HOMECARE,0000607947,"30,444.40"
Department oh Health,The Christie NHS Foundation Trust,28/02/2019,Paterson Development,Capital,MACE LTD,0000605987,"27,636.00"
Department oh Health,The Christie NHS Foundation Trust,07/02/2019,Anaesthetics Nov 18,Clinical Support & Specialist Surgery,MANCHESTER UNIVERSITY NHS FT,0000600012,"27,148.17"
Department oh Health,The Christie NHS Foundation Trust,07/02/2019,Critical Care Nov 18,Clinical Support & Specialist Surgery,MANCHESTER UNIVERSITY NHS FT,0000600022,"29,638.00"
Department oh Health,The Christie NHS Foundation Trust,07/02/2019,Anaesthetics Dec 18,Clinical Support & Specialist Surgery,MANCHESTER UNIVERSITY NHS FT,0000602648,"27,148.17"
Department oh Health,The Christie NHS Foundation Trust,07/02/2019,Critical Care Dec 18,Clinical Support & Specialist Surgery,MANCHESTER UNIVERSITY NHS FT,0000602650,"29,638.00"
Department oh Health,The Christie NHS Foundation Trust,07/02/2019,Anaesthetics Jan 19,Clinical Support & Specialist Surgery,MANCHESTER UNIVERSITY NHS FT,0000605759,"27,148.17"
Department oh Health,The Christie NHS Foundation Trust,07/02/2019,Critical Care Jan 19,Clinical Support & Specialist Surgery,MANCHESTER UNIVERSITY NHS FT,0000605762,"29,638.00"
Department oh Health,The Christie NHS Foundation Trust,14/02/2019,Education HUB & Spoke,Other Income Levies and Grants,MANCHESTER UNIVERSITY NHS FT,0000605546,"57,339.00"
Department oh Health,The Christie NHS Foundation Trust,21/02/2019,Pet Scans Dec 18,Christie Medical Physics,MANCHESTER UNIVERSITY NHS FT,0000607573,"96,516.00"
Department oh Health,The Christie NHS Foundation Trust,28/02/2019,Pet Scans Jan 19,Christie Medical Physics,MANCHESTER UNIVERSITY NHS FT,0000607897,"117,198.00"
Department oh Health,The Christie NHS Foundation Trust,28/02/2019,Funding MDT Oct-Dec 18,Network Services,MANCHESTER UNIVERSITY NHS FT,0000603820,"25,869.32"
Department oh Health,The Christie NHS Foundation Trust,21/02/2019,Drugs,Drugs,MID CHESHIRE HOSPITALS NHS FT,0000601177,"110,241.27"
Department oh Health,The Christie NHS Foundation Trust,07/02/2019,Blood Products,Network Services,NHS BLOOD AND TRANSPLANT,0000604643,"29,843.70"
Department oh Health,The Christie NHS Foundation Trust,15/02/2019,Blood Products,Network Services,NHS BLOOD AND TRANSPLANT,0000608002,"182,293.80"
Department oh Health,The Christie NHS Foundation Trust,07/02/2019,Stock for all Wards & Departments,All Wards and Departments,NHS SUPPLY CHAIN,0000604487,"47,719.49"
Department oh Health,The Christie NHS Foundation Trust,14/02/2019,Stock for all Wards & Departments,All Wards and Departments,NHS SUPPLY CHAIN,0000605425,"36,471.18"
Department oh Health,The Christie NHS Foundation Trust,28/02/2019,Stock for all Wards & Departments,All Wards and Departments,NHS SUPPLY CHAIN,0000607495,"45,342.63"
Department oh Health,The Christie NHS Foundation Trust,28/02/2019,Stock for all Wards & Departments,All Wards and Departments,NHS SUPPLY CHAIN,0000607496,"36,150.81"
Department oh Health,The Christie NHS Foundation Trust,21/02/2019,Proton Beam Development (PBT),Capital,ONCOLOGY SYSTEMS LIMITED,0000605529,"29,312.00"
Department oh Health,The Christie NHS Foundation Trust,14/02/2019,Consultancy,Programme Management Office,PURE dB LTD,0000606951,"22,000.00"
Department oh Health,The Christie NHS Foundation Trust,07/02/2019,Macmillan Project Dec 18,Manchester Cancer,SALFORD ROYAL HOSP NHS FT,0000606308,"113,673.05"
Department oh Health,The Christie NHS Foundation Trust,14/02/2019,Software Licences,FInance & Business Development,SOFTCAT PLC,0000605695,"51,197.00"
Department oh Health,The Christie NHS Foundation Trust,28/02/2019,Medical Equipment,Clinical Support & Specialist Surgery,SYNERGY HEALTH UK LTD,0000607156,"36,466.53"
Department oh Health,The Christie NHS Foundation Trust,07/02/2019,Medway System Support- Dec 18,FInance & Business Development,SYSTEM C HEALTHCARE,0000604474,"24,485.11"
Department oh Health,The Christie NHS Foundation Trust,07/02/2019,Drugs,Drugs,THE CHRISTIE CLINIC (HCA),0000602793,"38,297.00"
Department oh Health,The Christie NHS Foundation Trust,07/02/2019,Drugs,Drugs,THE CHRISTIE CLINIC (HCA),0000604497,"34,497.00"
Department oh Health,The Christie NHS Foundation Trust,21/02/2019,Drugs,Drugs,THE CHRISTIE CLINIC (HCA),0000607202,"38,994.00"
Department oh Health,The Christie NHS Foundation Trust,07/02/2019,Patient Testing Service ,Clinical Support & Specialist Surgery,THE CHRISTIE PATHOLOGY PARTNERSHIP LLP,0000605591,"449,356.67"
Department oh Health,The Christie NHS Foundation Trust,07/02/2019,Patient Testing Service ,Clinical Support & Specialist Surgery,THE CHRISTIE PATHOLOGY PARTNERSHIP LLP,0000605694,"-367,545.91"
Department oh Health,The Christie NHS Foundation Trust,07/02/2019,Patient Testing Service ,Clinical Support & Specialist Surgery,THE CHRISTIE PATHOLOGY PARTNERSHIP LLP,0000605592,"34,497.21"
Department oh Health,The Christie NHS Foundation Trust,14/02/2019,Patient Testing Service ,Clinical Support & Specialist Surgery,THE CHRISTIE PATHOLOGY PARTNERSHIP LLP,0000605696,"417,183.21"
Department oh Health,The Christie NHS Foundation Trust,28/02/2019,Patient Testing Service ,Clinical Support & Specialist Surgery,THE CHRISTIE PATHOLOGY PARTNERSHIP LLP,0000606387,"367,545.91"
Department oh Health,The Christie NHS Foundation Trust,28/02/2019,Medical Supplies,Estates & Facilities,TRADEBE HEALTHCARE NATIONAL LTD,0000604572,"28,754.67"
Department oh Health,The Christie NHS Foundation Trust,21/02/2019,Research Project,Research & Development,UNIVERSITY OF LEEDS,0000607413,"30,344.00"
Department oh Health,The Christie NHS Foundation Trust,07/02/2019,Energy Contract- Nov 18,Estates & Facilities,VEOLIA ENERGY &UTILITY SERVICES UK PLC,0000602078,"283,657.54"
Department oh Health,The Christie NHS Foundation Trust,07/02/2019,Energy Contract- Dec 18,Estates & Facilities,VEOLIA ENERGY &UTILITY SERVICES UK PLC,0000604897,"302,842.42"
